Cogmind - Beta 14 @@@ ROGUE MODE // 2024.10.09 @ 12:36:50 Player: ILikeVoltron Result: Destroyed by YI-UF0 with YI-UF0's Doublenader Performance ------------- Evolutions (0) 0 Regions Visited (2) 400 Robots Destroyed (29) 145 Value Destroyed (424) 424 Prototype IDs (0) 0 Alien Tech Used (0) 0 Bonus (0) 0 TOTAL SCORE: 969 Bonus ------- None Cogmind --------- Core Integrity 0/250 Matter 258/300 Energy 159/160 System Corruption 0% Temperature Cool (0) Movement Treading (160) Location -10/Mines Parts ------- > --- POWER (1) -------- Light Nuclear Core > --- PROPULSION (2) --- Light Treads Light Treads > --- UTILITY (2) ------ Improved Heat Sink Large Storage Unit > --- WEAPON (2) ------- Light Assault Rifle > --- INVENTORY (15) --- Ion Engine Aluminum Leg Large Matter Pod (150) Structural Scanner Sensor Array Signal Interpreter Improved Terrain Scanner Terrain Scan Processor Seismic Detector Light Armor Plating Light Armor Plating Light Armor Plating Light Assault Rifle Mining Laser Peak State ------------ > --- POWER ------------ Light Nuclear Core > --- PROPULSION ------- Light Treads Light Treads > --- UTILITY ---------- Improved Heat Sink Large Storage Unit > --- WEAPON ----------- Particle Gun Light Assault Rifle > --- INVENTORY -------- Ion Engine Aluminum Leg Large Matter Pod Structural Scanner Sensor Array Signal Interpreter Improved Terrain Scanner Terrain Scan Processor Seismic Detector Light Armor Plating Light Armor Plating Light Armor Plating Light Assault Rifle Grenade Launcher Mining Laser [Rating: 13] Favorites ----------- Power Light Ion Engine Engine Light Ion Engine Power Core Light Nuclear Core Propulsion Aluminum Leg Treads Light Treads Leg Aluminum Leg Utility Large Storage Unit Device Seismic Detector Storage Large Storage Unit Protection Light Armor Plating Weapon Light Assault Rifle Energy Gun Particle Gun Ballistic Gun Light Assault Rifle Launcher Grenade Launcher Special Weapon Mining Laser Build | -11 -10 -10 ------- Run | Yrd Mat Min Slots Evolved . | . . . Power . | . . . Propulsion . | . . . Utility . | . . . Weapon . | . . . Parts Attached 31 | 1 24 6 Power 2 | . 1 1 Engine 1 | . 1 . Core 1 | . . 1 Reactor . | . . . Propulsion 6 | . 6 . Treads 2 | . 2 . Leg 4 | . 4 . Wheel . | . . . Hover . | . . . Flight . | . . . Utility 7 | 1 5 1 Device 5 | 1 3 1 Storage 1 | . 1 . Processor . | . . . Hackware . | . . . Protection 1 | . 1 . Artifact . | . . . Weapon 16 | . 12 4 Energy Gun 6 | . 4 2 Energy Cannon . | . . . Ballistic Gun 3 | . 2 1 Ballistic Cannon . | . . . Launcher 3 | . 2 1 Special Weapon 4 | . 4 . Impact Weapon . | . . . Slashing Weapon . | . . . Piercing Weapon . | . . . Special Melee Weapon . | . . . Unidentified Prototypes . | . . . Parts Lost 2 | . . 2 Power . | . . . Propulsion . | . . . Utility . | . . . Weapon 2 | . . 2 Highest Loss Streak 2 | . . 2 To Critical Strikes . | . . . Average Slot Usage (%) 99 | . 99 100 Engine 13 | . 14 7 Treads 4 | . 3 28 Leg 22 | . 24 . Device 8 | . 8 14 Storage 14 | . 14 14 Protection 4 | . 5 . Energy Gun 9 | . 8 14 Ballistic Gun 14 | . 15 11 Special Weapon 3 | . 3 . Peak Build Rating 13 | 8 9 13 Average Rating 8 | 7 8 11 On Entrance 7 | 6 8 8 Naked Turns . | . . . Heaviest Build 32 | 12 30 32 Greatest Support 40 | 20 40 40 Greatest Overweight (x) 1 | . 1 . Average Overweight (x) . | . . . Largest Inventory Capacity 15 | 8 15 15 Average Capacity 13 | 8 13 15 Most Carried 15 | 8 15 15 Average Carried 12 | 7 12 14 Final Capacity 15 | 8 15 15 Final Carried 15 | 8 15 14 Class Distribution -------------------- 100% | Mutant Dominant Class ---------------- Mutant | -10/Materials Mutant | -10/Mines Resources | -11 -10 -10 ----------- Run | Yrd Mat Min Matter Collected 769 | 308 415 46 Remotely . | . . . Salvage Created 1025 | 181 763 81 Parts 60 | 14 39 7 Haulers Intercepted 2 | . 2 . Recyclers Shooed 1 | . 1 . Parts Field Recycled . | . . . Retrieved Matter . | . . . Parts Self-Destructed . | . . . Prevented . | . . . Kills | -11 -10 -10 ------- Run | Yrd Mat Min Combat Hostiles Destroyed 11 | . 9 2 Guns 11 | . 9 2 Classes Destroyed 8 | 3 5 . Worker 6 | 2 4 . Builder 1 | . 1 . Tunneler 4 | 3 1 . Hauler 2 | . 2 . Recycler 4 | 1 3 . Watcher 1 | . 1 . Swarmer 3 | . 3 . Grunt 8 | . 6 2 Best Kill Streak 9 | 2 9 2 Combat Bots Only 5 | . 5 2 Max Kills in Single Turn 1 | 1 1 1 Gunslinging . | . . . Exploded . | . . . Melee . | . . . Uniques/NPCs Destroyed . | . . . Combat | -11 -10 -10 -------- Run | Yrd Mat Min Hostile Shots Fired 77 | . 55 22 Missed 21 | . 15 6 Damage Taken 912 | . 456 456 Core 279 | . 134 145 Absorbed by Shields . | . . . Regen/Repaired (Parts) 30 | . 30 . Core Remaining (%) 100 | 100 . . Volleys Fired 79 | 7 63 9 Largest 2 | 2 2 2 Hottest 100 | 90 100 95 Shots Fired 145 | 14 115 16 Gun 133 | 14 104 15 Cannon . | . . . Launcher 1 | . . 1 Special 11 | . 11 . Kinetic 53 | . 45 8 Thermal 91 | 14 70 7 Explosive 1 | . . 1 Electromagnetic . | . . . Robot Hit Streak 12 | 12 10 5 Robot Miss Streak 4 | . 4 2 Penetration Max . | . . . Secondary Targets 1 | . 1 . Max Gunslinging Chain 1 | . 1 . Shots Hit Robots 89 | 12 67 10 Core Hits 48 | 7 36 5 Critical Kills 1 | . 1 . Critical Parts Destroyed . | . . . Critical Strikes 4 | . 4 . Burn 3 | . 3 . Destroy 1 | . 1 . Melee Attacks . | . . . Impact . | . . . Slashing . | . . . Piercing . | . . . Sneak Attacks . | . . . Combat Hostiles . | . . . Follow-up Attacks . | . . . Damage Inflicted 1025 | 139 765 121 Guns 971 | 139 717 115 Cannons . | . . . Explosions 6 | . . 6 Melee . | . . . Ramming . | . . . Kinetic 284 | . 231 53 Thermal 735 | 139 534 62 Explosive 6 | . . 6 Electromagnetic . | . . . Impact . | . . . Slashing . | . . . Piercing . | . . . Highest Corruption . | . . . Average Corruption . | . . . Corruption Purged . | . . . Corruption Blocked . | . . . Overload Shots . | . . . Overflow Damage . | . . . Projectiles . | . . . Explosions . | . . . Melee . | . . . Knockbacks . | . . . Impact . | . . . Kinetic . | . . . Secondary . | . . . Self-Inflicted Damage 23 | . . 23 Shots 1 | . . 1 Rammed . | . . . Targets Rammed . | . . . Kicked . | . . . Crushed . | . . . Highest Temperature 279 | 60 279 93 Average Temperature 79 | 25 91 52 Received Heat Transfer 297 | . 225 72 Effects 1 | . 1 . Energy Bleed 1 | . 1 . Siege Activations . | . . . Robots Corrupted . | . . . Combat Hostiles . | . . . Parts Fried . | . . . Impact Corruptions . | . . . Robots Melted 1 | . 1 . Combat Hostiles . | . . . Parts Melted 6 | 2 4 . Heat Transferred 2105 | 360 1597 148 Parts Sabotaged . | . . . Parts Stolen . | . . . Parts Stripped . | . . . Power Chain Reactions . | . . . Alert | -11 -10 -10 ------- Run | Yrd Mat Min Peak Influence 210 | 30 210 128 Initial 58 | . 19 58 Average 94 | 15 102 99 Maximum Alert Level 1 | . 1 . Low Security (%) 85 | 100 82 100 Level 1 14 | . 17 . Level 2 . | . . . Level 3 . | . . . Level 4 . | . . . Level 5 . | . . . High Security . | . . . Max Security . | . . . Squads Dispatched 1 | . 1 . Investigation . | . . . Extermination . | . . . Reinforcement 1 | . 1 . Assault . | . . . Garrison . | . . . Intercept . | . . . Searches Triggered . | . . . Construction Impeded . | . . . Haulers Reinforced . | . . . Active Scanning Responses . | . . . Cargo Convoy Interrupts . | . . . Stealth | -11 -10 -10 --------- Run | Yrd Mat Min Distress Signals . | . . . Communications Jammed . | . . . Distress Signals . | . . . Times Spotted 26 | . 22 4 Peak Tracking Total 4 | . 4 2 Tactical Retreats 2 | . 2 . Traps | -11 -10 -10 ------- Run | Yrd Mat Min Traps Triggered 1 | . 1 . Indirectly . | . . . Trap Hack Attempts . | . . . Triggered . | . . . Disarmed . | . . . Reprogrammed . | . . . Reused . | . . . Traps Extracted . | . . . Installed . | . . . Triggered . | . . . Machines | -11 -10 -10 ---------- Run | Yrd Mat Min Machines Disabled . | . . . Max in Single Turn . | . . . Machines Repaired . | . . . Machines Dismantled . | . . . Machines Sabotaged . | . . . Overloaded Fab Kills . | . . . Hacking | -11 -10 -10 --------- Run | Yrd Mat Min Machines Accessed 7 | . 7 . Terminals 6 | . 6 . Fabricators . | . . . Repair Stations 1 | . 1 . Recycling Units . | . . . Scanalyzers . | . . . Garrison Access . | . . . Total Hacks 18 | . 18 . Successful 10 | . 10 . Failed 8 | . 8 . Catastrophic 2 | . 2 . Database Lockouts . | . . . Manual 10 | . 10 . Terminals 16 | . 16 . Fabricators . | . . . Repair Stations 2 | . 2 . Recycling Units . | . . . Scanalyzers . | . . . Garrison Access . | . . . Terminal Hacks 3 | . 3 . Locate Traps 1 | . 1 . Hauler Manifests 1 | . 1 . Zone Layout 1 | . 1 . Fabricator Hacks . | . . . Repair Station Hacks 2 | . 2 . Scan Component 1 | . 1 . Repair 1 | . 1 . Recycling Unit Hacks . | . . . Scanalyzer . | . . . Garrison Access Hacks . | . . . Unauthorized Hacks 5 | . 5 . Terminals 5 | . 5 . Skim 5 | . 5 . Fabricators . | . . . Repair Stations . | . . . Recycling Units . | . . . Scanalyzers . | . . . Garrison Access . | . . . Data Cores Recovered . | . . . Used . | . . . Hacking Detections 7 | . 7 . Full Trace Events . | . . . Feedback Events . | . . . Feedback Blocked . | . . . Robot Schematics Acquired . | . . . Robots Built . | . . . Authchips . | . . . Time . | . . . Total Robot Build Rating . | . . . Part Schematics Acquired . | . . . Parts Built . | . . . Authchips . | . . . Time . | . . . Total Part Build Rating . | . . . Parts Repaired 1 | . 1 . Time 26 | . 26 . Parts Recycled . | . . . Recycled Matter . | . . . Retrieved Matter . | . . . Retrieved Components . | . . . Parts Scanalyzed . | . . . Part Schematics Acquired . | . . . Parts Damaged . | . . . Bothacking | -11 -10 -10 ------------ Run | Yrd Mat Min Used RIF Installer . | . . . Robots Hacked . | . . . Non-combat . | . . . Combat . | . . . Robot Hacks Applied . | . . . Relay Couplers Released . | . . . Fabnet Peak Effective % . | . . . Robots Rewired . | . . . Allies Hacked . | . . . Hacks Repelled . | . . . Allies | -11 -10 -10 -------- Run | Yrd Mat Min Total Allies . | . . . Largest Group . | . . . Highest-Rated Group . | . . . Highest-Rated Ally . | . . . Total Orders . | . . . Ally Attacks . | . . . Total Damage . | . . . Kills . | . . . Allies Corrupted . | . . . Allies Melted . | . . . Intel | -11 -10 -10 ------- Run | Yrd Mat Min Robot Analysis Total . | . . . Derelict Logs Recovered . | . . . Drone Launches . | . . . Drone Recoveries . | . . . Exploration | -11 -10 -10 ------------- Run | Yrd Mat Min Turns Passed 1347 | 122 1166 59 Spaces Moved 551 | 28 505 18 Core . | . . . Treads 109 | . 91 18 Legs 442 | 28 414 . Wheels . | . . . Hover . | . . . Flight . | . . . Fastest Speed 120 | 120 120 160 Average Speed 171 | 120 174 160 Slowest Speed 240 | 120 240 160 Overloaded Moves . | . . . Propulsion Burnouts . | . . . Robots Hopped . | . . . Cave-ins Triggered . | . . . Exploration Rate (%) 30 | 4 81 7 Regions Visited 2 Branch Regions 1 Pre-discovered Areas . | . . . Known Exits Taken 1 | . 1 . Unknown Exits Taken 1 | 1 . . Scrap Searched . | . . . Spaces Dug 9 | . 9 . Terrain Destroyed 15 | . 9 6 Melee . | . . . Projectile 9 | . 9 . AOE 6 | . . 6 Terrain Rammed . | . . . Walls Destroyed . | . . . Machines Disabled . | . . . Actions | -11 -10 -10 --------- Run | Yrd Mat Min Total 801 | 102 663 36 Wait 100 | 63 37 . Move 549 | 27 504 18 Hop . | . . . Pick Up 18 | 3 15 . Fast Attach 8 | 1 7 . Attach 1 | . . 1 Detach 2 | . 2 . Swap 22 | . 17 5 Drop 22 | 1 18 3 Fire 79 | 7 63 9 Melee . | . . . Ram . | . . . Kick . | . . . Crush . | . . . Escape Stasis . | . . . Rewire . | . . . Trap . | . . . Miscellaneous . | . . . Route ------- -11/Scrapyard -10/Materials (discovered 6 exits: *Mat x3 / *Min x2 / Sub) -10/Mines (discovered 4 exits: Mat x2 / Exi / Sub) History --------- Turn | Location | Event 9 | -11/Scrapyard | Discovered new exit (range 3) 123 | -11/Scrapyard | Entered Materials 189 | -10/Materials | Discovered new exit (range 10) 326 | -10/Materials | Build established: Mutant 552 | -10/Materials | Discovered new exit (range 7) 584 | -10/Materials | Discovered new exit (range 16) 695 | -10/Materials | Discovered new exit (range 13) 759 | -10/Materials | Repaired Aluminum Leg 865 | -10/Materials | Discovered new exit (range 5) 1038 | -10/Materials | Identified exit to Materials 1038 | -10/Materials | Identified exit to Mines 1038 | -10/Materials | Identified exit to Subcaves 1073 | -10/Materials | Core integrity fell below 50% 1093 | -10/Materials | Learned location of 2 exits from Mines 1105 | -10/Materials | Learned 2 Mines zone layouts 1106 | -10/Materials | Learned 2 Storage zone layouts 1115 | -10/Materials | Learned 2 Mines zone layouts 1289 | -10/Materials | Entered Mines 1291 | -10/Mines | Identified exit to Exiles 1331 | -10/Mines | YI-UF0 nonchalantly dropped a Grenade Launcher on the ground 1345 | -10/Mines | Core integrity fell below 20% 1348 | -10/Mines | Destroyed by YI-UF0 with YI-UF0's Doublenader Last Messages --------------- Loading 4 Mines zones... 01297_ G-34 Mercenary destroyed. 01305_ G-47 Trooper destroyed. 01309_ Acquired 36 matter. 01313_ Dropped Heat Sink. 01314_ Acquired 10 matter. 01317_ Dropped Ion Engine. 01320_ Dropped Particle Gun. 01331_ YI-UF0 nonchalantly drops a Grenade Launcher on the ground. 01333_ YI-UF0 suffers critical hit (Burn). 01334_ R-06 Scavenger destroyed. 01335_ YI-UF0: "Whaaaaaaaa!" 01338_ G-47 Trooper destroyed. 01343_ The unstable cave ceiling collapses. 01344_ Grenade Launcher destroyed. 01346_ The unstable cave ceiling collapses. 01346_ Particle Gun destroyed. 01347_ The unstable cave ceiling collapses. Map ----- +----------------------------------------------------+ | ??????????????????????????# #???## | | ??????????????????????????## ##???# | | ???????????????????????????## ##????# | | ???????????????????????????## ##?????## | | ?????????????????????????### ##???????# | | ????????????????????????? ##????????# | | ????????????????????????? #?????????# | | ????????????????????????? ##?????????# | | ?????????????????????????# ##??????????# | | ?????????????????????????# ##??????????# | | ?????????????? #????????# #??????????# | | ?????????????? ????????## ##?#######??? | | ?????????????? ????????###??# #??? | | ?????????????? ?????????????# #??# | | ???????####### [ ?????????????# #??# | | ???????# # ?????????????# < #?## | | ???????# # ?????????????# #?# | | ???????# ## #?????????????## ####?# | | ???????# * ## #??????????????# #????## | | ???????# =%[## ####?# #???????# #?????# | | ???????# =[ ! ### #???????# #?????? | | ???????###*# ## ######### #?????? | | ????????## # % # #?????? | | ???????## # ### ####### #?????? | | ???????# #?# #?????# #?????? | | ???????# # g@ #??# #?????# ####### | | ???????# #??# ##????# | | ???????# ##?## #????# ####### | | ???????## # #??# #????# ###???# | | ????????## #### ####?## ##?#### ##??# | | ?????????# #??######### #?## #??# | | ?????????# #????## #?# ##??# | | ?????????# #????# #?# ##???# | | ?????????# ###??## #### ##???# | | ?????????# ##??# ##### #???# | | ?????????### #??# ##??# ## #??## | | ???????????# ##??## ##### ########?## | | ???????????###????# ##????????# | | ??????????? ??????# ######?????????# | | ??????????> ??????## ##??????????????## | | ???????????????????####????????????????## | | ????????????????????????????????????????? | | ????????????????????????????????????????? | | ????????????????????????????????????????? | | | | | | | | | | | | | +----------------------------------------------------+ Best States ------------- Heat Dissipation 39 Energy Generation 14 Energy Capacity 250 Matter Stores 300 Matter Capacity 300 Sight Range 16 Terrain Scan Density 10 Armor Coverage 150 Evasion (%) 55 Recoil Reduction 2 Item Schematics ----------------- None Robot Schematics ------------------ None Fabricated ------------ Nothing Alien Tech Used ----------------- None Achievements -------------- None Challenges ------------ None Game ------ Seed SegregatorVortexBasin Manual? 0 Play Time 00:16:43 Cumulative 178.3 hours Start 2024.10.09 @ 12:22:23 End 2024.10.09 @ 12:36:50 Sessions 1 Manual Loads 0 Difficulty Rogue Special Mode None Game No. 326 Rogue 322 Adventurer 0 Explorer 4 Win Type - Total 0 Types 0/0/0/0/0/0/0/0/0 Lore% 21 Gallery% 46 Achievement% 35 Wizard Run 0 Options --------- Layout 1 ASCII 0 Keyboard 1 Movement Arrows Keybinds 0 Fullscreen 1 Font 32/SmallcapsGlow Map View 130x35 Zoom Use 0% Tactical HUD 1 Map Filters NONE Filters NONE Steam 0 RUN: c963ac6a-0a9c-40dc-b5a9-30279e1fe51d